Cogmind - Beta 13 @@@ ROGUE MODE // 2024.03.08 @ 00:45:39 Player: gloin Result: Destroyed by S-10 Pest with Light Assault Rifle Performance ------------- Evolutions (1) 500 Regions Visited (2) 400 Robots Destroyed (26) 130 Value Destroyed (636) 636 Prototype IDs (1) 20 Alien Tech Used (0) 0 Bonus (24) 24 TOTAL SCORE: 1710 Bonus ------- High Alert Combat Kills 24 Cogmind --------- Core Integrity 0/400 Matter 300/300 Energy 92/100 System Corruption 20% Temperature Cool (0) Movement Flying (200) Ox2 Location -9/Materials Parts ------- > --- POWER (1) -------- (None) > --- PROPULSION (2) --- Flight Unit > --- UTILITY (2) ------ Medium Storage Unit > --- WEAPON (4) ------- Small Laser > --- INVENTORY (10) --- Heat Sink Peak State ------------ > --- POWER ------------ Light Ion Engine > --- PROPULSION ------- Light Treads Light Treads > --- UTILITY ---------- Medium Storage Unit Large Matter Pod > --- WEAPON ----------- Small Laser Advanced Beam Cannon Advanced Beam Cannon Grenade Launcher > --- INVENTORY -------- Flight Unit Flight Unit Assault Rifle [Rating: 13] Favorites ----------- Power Light Ion Engine Engine Light Ion Engine Propulsion Light Treads Treads Light Treads Flight Unit Flight Unit Utility Large Matter Pod Storage Large Matter Pod Protection Light Armor Plating Weapon Small Laser Energy Gun Small Laser Energy Cannon Advanced Beam Cannon Ballistic Gun Assault Rifle Launcher Grenade Launcher Special Weapon Welding Torch Build | -11 -10 -9 ------- Run | Yrd Mat Mat Slots Evolved 2 | . . 2 Power . | . . . Propulsion . | . . . Utility . | . . . Weapon 2 | . . 2 Parts Attached 18 | 5 2 11 Power 3 | 1 . 2 Engine 3 | 1 . 2 Core . | . . . Reactor . | . . . Propulsion 4 | 2 . 2 Treads 2 | 2 . . Leg . | . . . Wheel . | . . . Hover . | . . . Flight 2 | . . 2 Utility 3 | . 1 2 Device . | . . . Storage 2 | . 1 1 Processor . | . . . Hackware . | . . . Protection 1 | . . 1 Artifact . | . . . Weapon 8 | 2 1 5 Energy Gun 1 | 1 . . Energy Cannon 2 | . . 2 Ballistic Gun 3 | 1 . 2 Ballistic Cannon . | . . . Launcher 1 | . 1 . Special Weapon 1 | . . 1 Impact Weapon . | . . . Slashing Weapon . | . . . Piercing Weapon . | . . . Special Melee Weapon . | . . . Unidentified Prototypes 1 | . . 1 Corrupted Parts 2 | . . 2 System Corruption 7 | . . 7 Parts Lost 12 | . . 12 Power 2 | . . 2 Propulsion 3 | . . 3 Utility 2 | . . 2 Weapon 5 | . . 5 Highest Loss Streak 5 | . . 5 To Critical Strikes . | . . . Average Slot Usage (%) 80 | . 83 77 Engine 10 | . 14 8 Treads 20 | . 28 14 Flight 2 | . . 4 Storage 14 | . 12 15 Protection 2 | . . 3 Energy Gun 12 | . 14 11 Energy Cannon 6 | . . 10 Ballistic Gun 7 | . 13 2 Launcher 3 | . . 5 Naked Turns . | . . . Heaviest Build 28 | 6 10 28 Greatest Support 40 | 40 40 40 Greatest Overweight (x) 7 | . . 7 Average Overweight (x) . | . . . Largest Inventory Capacity 10 | 5 5 10 Average Capacity 7 | 5 5 8 Most Carried 5 | 5 4 4 Average Carried 2 | 1 2 2 Final Capacity 10 | 5 5 10 Final Carried 3 | 1 3 1 Class Distribution -------------------- 61% | Mutant 28% | Gunner 5% | Scavenger-Mutant 4% | Scavenger-Tank Dominant Class ---------------- Mutant | -10/Materials Gunner | -9/Materials Resources | -11 -10 -9 ----------- Run | Yrd Mat Mat Matter Collected 580 | 83 211 286 Remotely . | . . . Salvage Created 731 | . 252 479 Parts 48 | . 11 37 Haulers Intercepted 2 | . . 2 Recyclers Shooed . | . . . Parts Field Recycled . | . . . Retrieved Matter . | . . . Parts Self-Destructed . | . . . Prevented . | . . . Kills | -11 -10 -9 ------- Run | Yrd Mat Mat Combat Hostiles Destroyed 18 | . 8 10 Guns 11 | . 7 4 Cannons 3 | . . 3 AOE 4 | . 1 3 Classes Destroyed 8 | . 3 5 Worker 1 | . 1 . Builder 2 | . . 2 Hauler 2 | . . 2 Recycler 1 | . . 1 Watcher 2 | . . 2 Swarmer 6 | . 3 3 Grunt 10 | . 5 5 Sentry 2 | . . 2 Best Kill Streak 6 | . 3 6 Combat Bots Only 4 | . 3 4 Max Kills in Single Turn 2 | . 2 2 Gunslinging 1 | . 1 . Exploded 1 | . 1 1 Melee . | . . . Uniques/NPCs Destroyed . | . . . Combat | -11 -10 -9 -------- Run | Yrd Mat Mat Hostile Shots Fired 168 | . 22 146 Missed 57 | . 8 49 Damage Taken 1549 | . 220 1329 Core 460 | . 54 406 Absorbed by Shields . | . . . Core Remaining (%) 89 | 100 78 . Volleys Fired 55 | 1 19 35 Largest 3 | 2 2 3 Hottest 138 | 60 70 138 Shots Fired 112 | 2 38 72 Gun 82 | 2 35 45 Cannon 19 | . . 19 Launcher 11 | . 3 8 Special . | . . . Kinetic 32 | 1 16 15 Thermal 69 | 1 19 49 Explosive 11 | . 3 8 Electromagnetic . | . . . Robot Hit Streak 8 | 1 8 5 Robot Miss Streak 4 | 1 4 4 Penetration Max . | . . . Secondary Targets 1 | . 1 . Max Gunslinging Chain 1 | . 1 . Shots Hit Robots 56 | 1 22 33 Core Hits 38 | . 15 23 Critical Kills . | . . . Critical Parts Destroyed . | . . . Critical Strikes . | . . . Melee Attacks . | . . . Impact . | . . . Slashing . | . . . Piercing . | . . . Sneak Attacks . | . . . Combat Hostiles . | . . . Follow-up Attacks . | . . . Damage Inflicted 1679 | 13 348 1318 Guns 468 | 13 227 228 Cannons 226 | . . 226 Explosions 985 | . 121 864 Melee . | . . . Ramming . | . . . Kinetic 163 | 13 76 74 Thermal 935 | . 151 784 Explosive 554 | . 121 433 Electromagnetic 27 | . . 27 Impact . | . . . Slashing . | . . . Piercing . | . . . Highest Corruption 20 | . . 20 Average Corruption 15 | . . 15 Corruption Purged . | . . . Corruption Blocked . | . . . Effects 18 | . . 18 Message Errors 4 | . . 4 Matter Fused 6 | . . 6 Energy Discharges 2 | . . 2 Data Loss (minor) 3 | . . 3 Data Loss (major) 2 | . . 2 Misfires 1 | . . 1 Overload Shots . | . . . Overflow Damage 166 | . . 166 Projectiles 1 | . . 1 Explosions 165 | . . 165 Melee . | . . . Knockbacks . | . . . Impact . | . . . Kinetic . | . . . Secondary . | . . . Self-Inflicted Damage 194 | . 79 115 Shots 4 | . 2 2 Rammed . | . . . Targets Rammed . | . . . Kicked . | . . . Crushed . | . . . Highest Temperature 170 | . 30 170 Average Temperature 49 | . 12 58 Received Heat Transfer 153 | . 60 93 Siege Activations . | . . . Robots Corrupted . | . . . Combat Hostiles . | . . . Parts Fried . | . . . Impact Corruptions . | . . . Robots Melted . | . . . Combat Hostiles . | . . . Parts Melted 3 | . 3 . Heat Transferred 1357 | . 350 1007 Parts Sabotaged . | . . . Parts Stolen . | . . . Parts Stripped . | . . . Power Chain Reactions . | . . . Alert | -11 -10 -9 ------- Run | Yrd Mat Mat Peak Influence 481 | . 254 481 Initial 107 | . . 107 Average 192 | . 92 284 Maximum Alert Level 2 | . 1 2 Low Security (%) 53 | 100 96 17 Level 1 40 | . 3 70 Level 2 6 | . . 11 Level 3 . | . . . Level 4 . | . . . Level 5 . | . . . High Security . | . . . Max Security . | . . . Squads Dispatched 2 | . 2 . Investigation 1 | . 1 . Extermination . | . . . Reinforcement 1 | . 1 . Assault . | . . . Garrison . | . . . Intercept . | . . . Searches Triggered . | . . . Construction Impeded . | . . . Haulers Reinforced . | . . . Active Scanning Responses . | . . . Cargo Convoy Interrupts . | . . . Stealth | -11 -10 -9 --------- Run | Yrd Mat Mat Distress Signals 3 | . 1 2 Communications Jammed . | . . . Distress Signals . | . . . Times Spotted 25 | . 11 14 Peak Tracking Total 4 | . 3 4 Tactical Retreats . | . . . Traps | -11 -10 -9 ------- Run | Yrd Mat Mat Traps Triggered . | . . . Indirectly . | . . . Trap Hack Attempts . | . . . Triggered . | . . . Disarmed . | . . . Reprogrammed . | . . . Reused . | . . . Traps Extracted . | . . . Installed . | . . . Triggered . | . . . Machines | -11 -10 -9 ---------- Run | Yrd Mat Mat Machines Disabled 8 | . 1 7 Max in Single Turn 6 | . 1 6 Machines Repaired . | . . . Machines Dismantled . | . . . Machines Sabotaged . | . . . Overloaded Fab Kills . | . . . Hacking | -11 -10 -9 --------- Run | Yrd Mat Mat Machines Accessed 2 | . 2 . Terminals 1 | . 1 . Fabricators . | . . . Repair Stations . | . . . Recycling Units 1 | . 1 . Scanalyzers . | . . . Garrison Access . | . . . Total Hacks 5 | . 5 . Successful 3 | . 3 . Failed 2 | . 2 . Catastrophic . | . . . Database Lockouts . | . . . Manual . | . . . Terminals 2 | . 2 . Fabricators . | . . . Repair Stations . | . . . Recycling Units 3 | . 3 . Scanalyzers . | . . . Garrison Access . | . . . Terminal Hacks . | . . . Fabricator Hacks . | . . . Repair Station Hacks . | . . . Recycling Unit Hacks 3 | . 3 . Recycle Component 1 | . 1 . Process 2 | . 2 . Scanalyzer . | . . . Garrison Access Hacks . | . . . Unauthorized Hacks . | . . . Terminals . | . . . Fabricators . | . . . Repair Stations . | . . . Recycling Units . | . . . Scanalyzers . | . . . Garrison Access . | . . . Data Cores Recovered . | . . . Used . | . . . Hacking Detections 2 | . 2 . Full Trace Events 1 | . 1 . Feedback Events . | . . . Feedback Blocked . | . . . Robot Schematics Acquired . | . . . Robots Built . | . . . Authchips . | . . . Time . | . . . Total Robot Build Rating . | . . . Part Schematics Acquired . | . . . Parts Built . | . . . Authchips . | . . . Time . | . . . Total Part Build Rating . | . . . Parts Repaired . | . . . Time . | . . . Parts Recycled 1 | . 1 . Recycled Matter 20 | . 20 . Retrieved Matter . | . . . Retrieved Components . | . . . Parts Scanalyzed . | . . . Part Schematics Acquired . | . . . Parts Damaged . | . . . Bothacking | -11 -10 -9 ------------ Run | Yrd Mat Mat Used RIF Installer . | . . . Robots Hacked . | . . . Non-combat . | . . . Combat . | . . . Robot Hacks Applied . | . . . Relay Couplers Released . | . . . Fabnet Peak Effective % . | . . . Robots Rewired . | . . . Allies Hacked . | . . . Hacks Repelled . | . . . Allies | -11 -10 -9 -------- Run | Yrd Mat Mat Total Allies . | . . . Largest Group . | . . . Highest-Rated Group . | . . . Highest-Rated Ally . | . . . Total Orders . | . . . Ally Attacks . | . . . Total Damage . | . . . Kills . | . . . Allies Corrupted . | . . . Allies Melted . | . . . Intel | -11 -10 -9 ------- Run | Yrd Mat Mat Robot Analysis Total . | . . . Derelict Logs Recovered . | . . . Drone Launches . | . . . Drone Recoveries . | . . . Exploration | -11 -10 -9 ------------- Run | Yrd Mat Mat Turns Passed 1022 | 67 389 566 Spaces Moved 470 | 40 203 227 Core 35 | 13 . 22 Treads 408 | 27 203 178 Legs . | . . . Wheels . | . . . Hover . | . . . Flight 27 | . . 27 Fastest Speed 50 | 50 160 117 Average Speed 166 | 124 160 179 Slowest Speed 400 | 160 160 400 Overloaded Moves . | . . . Propulsion Burnouts . | . . . Robots Hopped . | . . . Cave-ins Triggered 1 | . . 1 Exploration Rate (%) 21 | 4 35 24 Regions Visited 2 Branch Regions . Pre-discovered Areas . | . . . Known Exits Taken . | . . . Unknown Exits Taken 2 | 1 1 . Scrap Searched . | . . . Spaces Dug . | . . . Terrain Destroyed 74 | . 13 61 Melee . | . . . Projectile 1 | . . 1 AOE 73 | . 13 60 Terrain Rammed . | . . . Walls Destroyed . | . . . Machines Disabled . | . . . Actions | -11 -10 -9 --------- Run | Yrd Mat Mat Total 610 | 56 229 325 Wait 46 | 3 2 41 Move 468 | 39 202 227 Hop . | . . . Pick Up 20 | 7 4 9 Fast Attach . | . . . Attach 16 | 5 1 10 Detach . | . . . Swap 2 | . 1 1 Drop 3 | 1 . 2 Fire 55 | 1 19 35 Melee . | . . . Ram . | . . . Kick . | . . . Crush . | . . . Escape Stasis . | . . . Rewire . | . . . Trap . | . . . Miscellaneous . | . . . Route ------- -11/Scrapyard -10/Materials -9/Materials History --------- Turn | Location | Event 13 | -11/Scrapyard | Discovered new exit (range 14) 68 | -11/Scrapyard | Entered Materials 315 | -10/Materials | Build established: Mutant 416 | -10/Materials | Discovered new exit (range 8) 457 | -10/Materials | Entered another Materials area 457 | -9/Materials | Evolved 2 slots: Weapon x2 606 | -9/Materials | System corruption reached 10% 781 | -9/Materials | Lost 3 parts (1p2w) 814 | -9/Materials | Crushed by falling debris 814 | -9/Materials | Core integrity fell below 50% 869 | -9/Materials | Core integrity fell below 20% 892 | -9/Materials | Lost 5 parts (1p2n1u1w) 1023 | -9/Materials | Destroyed by S-10 Pest with Light Assault Rifle Last Messages --------------- R-06 Scavenger collects Welding Torch. U-05 Engineer lays Concrete. U-05 Engineer builds a Wall. U-05 Engineer lays Concrete. System corrupted: Component data lost. U-05 Engineer builds a Wall. U-05 Engineer lays Concrete. R-06 Scavenger collects Terrain Scanner. U-05 Engineer lays Concrete. Adv. Beam Cannon destroyed. U-05 Engineer lays Concrete. K-01 Serf collects debris. Welding Torch destroyed. U-05 Engineer lays Concrete. System corrupted: Matter fused (-10). U-05 Engineer lays Concrete. Lgt. Armor Plating destroyed. Dropped Lgt. Ion Engine. U-05 Engineer builds a Wall. Flight Unit destroyed. Map ----- +----------------------------------------------------+ | # # ### ####???#####+#####+#######+#?????? | | ##### #??????# ###???? | | ## # ######## #??? | | ### # # = + #??? | | ] ##############+### #??? | | # #????????# #?? #??? | | * [% #????????# """#? #??? | | ########????????# """#? ???? ???? | | #[ ##???????### ""# #????????? | | ######????????# " # #????????? | | #????????????## ####/#""# #????????? | | ###### #???##########" #????????? | | ???? ###?# " #????????? | | ?? #??????"" + #????????? | | ? #??????"" # ####????????? | | #??????"" # ##??????????? | | #??????"" " "" # ##??????????? | | #??????"" "R""?# ##??????????? | | ?######## #???????????""??# a ##??????????? | | ????????? #??????????##???## %u ##??????????? | | ????????? ??????????## ##### ##??????????? | | ????????? ??????????# # ##??????????? | | ????????????????????# """ # ##??????????? | | ????????????????????# "" # ######+###??? | | ????????????????????# """s k % #??? | | ????????????????????# @s# % #??? | | ????????????????????# # #??? | | ????????????????????# *s% #??? | | ????????????????????# "Y" #k #??? | | ????????????????????# """ # % #??? | | ????????????????????######## #??? | | ???????????????????? #??? | | ???????????????? u | | ????????????????? ###;;###+########## | | ????????????????? #### ? ????????? | | ?????????????????? #??# ????????? | | ????????????????? ######### ??+ ???????? | | ??????????????????????????# #??# ???????? | | ??????????????????????????# #??# ??????? | | ??????????????????????????# #??# ?????? | | ?????????????????????????? #??# ??????? | | ????????????????????????? #??# ??????? | | ????????????????????????? ????######????????? | | ????????????????????????? ##+##??????????????????? | | ?????????????????????????????????????????????????? | | ?????????????????????????????????????????????????? | | ?????????????????????????????????????????????????? | | ?????????????????????????????????????????????????? | | ?????????????????????????????????????????????????? | | ?????????????????????????????????????????????????? | +----------------------------------------------------+ Best States ------------- Heat Dissipation 28 Energy Generation 10 Energy Capacity 250 Matter Stores 300 Matter Capacity 450 Sight Range 16 Terrain Scan Density 10 Armor Coverage 150 Evasion (%) 50 Recoil Reduction 2 Item Schematics ----------------- None Robot Schematics ------------------ None Fabricated ------------ Nothing Alien Tech Used ----------------- None Achievements -------------- Let's See Who's Tougher Loot Pinata System Compromised Unlikely Earthworm Challenges ------------ None Game ------ Seed ParticleMicrowarpCloak Manual? 0 Play Time 00:19:12 Cumulative 1.0 hours Start 2024.03.08 @ 00:29:05 End 2024.03.08 @ 00:45:39 Sessions 1 Manual Loads 0 Difficulty Rogue Special Mode None Game No. 2 Rogue 2 Adventurer 0 Explorer 0 Win Type - Total 0 Types 0/0/0/0/0/0/0/0/0 Lore% 0 Gallery% 2 Achievement% 3 Wizard Run 0 Options --------- Layout 1 ASCII 0 Keyboard 0 Movement Mouse Keybinds 0 Fullscreen 1 Font 32/SmallcapsGlow Map View 45x20 Zoom Use 96% Tactical HUD 0 Map Filters NONE Filters NONE Steam 1 RUN: f06442e1-d092-45fc-bb7b-cb789b242fee